bitfinex/quotes_ETHUSD_20250217
["timestamp","ask_amount","ask_price","bid_price","bid_amount"]
[1739806365330,3.6380832,2804.1,2804.0,3.64083467]
[1739806366025,3.6380832,2804.1,2804.0,4.95424022]
[1739806366181,1.0,2805.2,2804.3,3.56595]
[1739806366382,1.0,2805.2,2804.0,1.38791022]
[1739806366584,3.56506,2805.0,2804.4,0.07420085]
[1739806366814,4.56481,2805.2,2804.4,0.07420085]
[1739806366987,4.56481,2805.2,2804.2,3.56604]
[1739806366988,3.56509,2805.0,2804.2,3.56604]
[1739806367188,1.8142,2805.2,2804.5,0.0741249]
[1739806367423,3.56533,2804.8,2803.9,4.34104]
[1739806367635,3.56493,2805.1,2803.9,0.7747]
[1739806367934,0.537913,2805.0,2804.0,0.07450467]
[1739806368138,3.56544,2804.8,2804.0,0.07450467]
[1739806368309,0.537913,2805.0,2804.0,3.56629]
[1739806368515,3.56542,2804.8,2804.1,0.0744287]
[1739806368740,3.56542,2804.8,2804.0,3.56627]
[1739806368899,3.56542,2804.8,2804.2,0.07435274]
[1739806369099,0.537913,2805.0,2803.8,3.56658]
[1739806369299,1.8142,2805.2,2803.9,0.07458063]
[1739806369655,3.56548,2804.7,2803.9,3.64093063]
[1739806369848,3.56548,2804.7,2804.0,3.5663]
[1739806370802,5.91692,2805.2,2804.2,3.56605]
[1739806370994,5.91692,2805.2,2804.4,3.56572]
[1739806371194,5.91691,2805.2,2804.3,0.07427679]
[1739806371396,3.56525,2804.9,2804.5,0.07394537]
[1739806371700,3.56525,2804.9,2803.5,4.36518]
[1739806372041,3.56495,2805.1,2804.2,3.56606]
[1739806372211,1.0,2805.2,2803.8,0.8019]
[1739806372544,1.0,2805.2,2804.9,4.37937]
[1739806372744,1.0,2805.2,2805.0,3.56505]
[1739806372895,1.0,2805.2,2805.1,3.56493]
[1739806373239,1.0,2805.2,2805.1,4.43736696]
[1739806373734,0.9093839,2805.2,2805.1,4.43736696]
[1739806374437,3.9e-06,2805.2,2805.1,4.43736696]
[1739806374642,3.9e-06,2805.2,2805.1,7.46466473]
[1739806374840,3.56279,2806.8,2805.1,4.63153696]
[1739806375080,3.56274,2806.9,2806.2,3.56351]
[1739806375296,0.8249,2807.1,2806.4,3.56317]
[1739806375297,4.38731,2807.1,2806.4,3.56317]
[1739806375441,3.56253,2807.0,2806.3,0.06948954]
[1739806375641,3.56339,2806.4,2805.6,3.56421]
[1739806375897,0.04454807,2806.3,2805.5,0.005]
[1739806376196,3.56336,2806.4,2805.7,3.56406]
[1739806376339,3.56336,2806.4,2805.5,0.361949]
[1739806376544,3.56308,2806.6,2805.7,3.56408]
[1739806376769,0.7759,2806.4,2805.5,0.005]
[1739806376985,3.56429,2805.6,2805.5,0.005]
[1739806377352,0.7759,2806.4,2805.5,0.005]
[1739806377557,3.56361,2806.2,2805.5,0.005]
[1739806377739,0.7759,2806.4,2805.6,3.56429]
[1739806377740,4.33922,2806.4,2805.6,3.56429]
[1739806377942,3.56358,2806.2,2805.6,3.921119]
[1739806378267,3.56307,2806.6,2805.8,3.56401]
[1739806378437,3.56337,2806.4,2805.6,3.921169]
[1739806378643,4.3475,2806.9,2805.6,3.921169]
[1739806378644,3.56307,2806.6,2805.6,0.356929]
[1739806378984,3.56307,2806.6,2806.0,3.5637]
[1739806379184,0.7848,2806.9,2805.5,0.005]
[1739806379384,3.5635,2806.3,2805.6,3.56417]
[1739806379544,3.5635,2806.3,2805.5,0.005]
[1739806379545,3.56296,2806.7,2805.8,3.56402]
[1739806379882,0.43923051,2806.7,2806.1,3.56358]
[1739806380055,4.34746,2806.9,2806.1,3.56362]
[1739806380246,4.34746,2806.9,2805.6,3.56429]
[1739806380247,3.6106586,2806.4,2805.6,3.56429]
[1739806380440,3.6106586,2806.4,2806.2,3.56349]
[1739806380868,3.6106586,2806.4,2806.0,3.56378]
[1739806381085,4.31531,2806.3,2805.5,0.005]
[1739806381302,3.56416,2805.8,2805.5,0.005]
[1739806381449,3.56417,2805.7,2805.5,0.005]
[1739806381644,3.56429,2805.6,2805.5,0.005]
[1739806382150,3.56362,2806.2,2805.5,3.56942]
[1739806382381,3.56367,2806.1,2805.5,3.56942]
[1739806382683,0.36106586,2806.3,2805.5,0.005]
[1739806382882,3.56392,2805.9,2805.5,0.005]
[1739806383043,3.56393,2805.9,2805.5,0.005]
[1739806383247,3.56429,2805.6,2805.5,1e-05]
[1739806383444,6.608861,2805.6,2805.5,1e-05]
[1739806383650,7.158861,2805.6,2805.5,1e-05]
[1739806383986,9.71728318,2805.6,2805.5,1e-05]
[1739806384186,9.67271218,2805.6,2805.5,1e-05]
[1739806384854,9.12271218,2805.6,2805.5,1e-05]
[1739806385466,6.12271218,2805.6,2805.5,1e-05]
[1739806385677,3.60885566,2805.6,2805.5,1e-05]
[1739806385876,3.56429,2805.6,2805.5,1e-05]
[1739806386080,12.78180274,2805.6,2805.5,1e-05]
[1739806386383,12.73723709,2805.6,2805.5,1e-05]
[1739806386605,0.24694709,2805.6,2805.5,1e-05]
[1739806386748,0.24694709,2805.6,2805.5,3.56443]
[1739806386947,0.24694709,2805.6,2805.5,0.71291]
[1739806387197,0.24694709,2805.6,2805.5,1e-05]
[1739806387345,0.24694709,2805.6,2805.5,3.56443]
[1739806387546,0.24694709,2805.9,2805.6,3.56427]
[1739806387760,0.24694709,2805.9,2805.5,3.56443]
[1739806387761,0.24694709,2805.9,2805.5,1e-05]
[1739806387959,0.24694709,2805.9,2805.7,0.07011545]
[1739806388184,3.81090709,2805.9,2805.6,0.07019133]
[1739806388392,3.81090709,2805.9,2805.8,0.07003958]
[1739806388685,0.24694709,2805.9,2805.7,0.07011545]
[1739806388841,0.24694709,2805.9,2805.8,0.07003958]
[1739806389357,0.24694709,2805.9,2805.5,1e-05]
[1739806389358,3.56429,2805.6,2805.5,1e-05]
[1739806389742,3.56385,2806.0,2805.5,1e-05]
[1739806390167,0.8258,2806.7,2805.5,1e-05]
[1739806390376,4.36869,2805.6,2805.5,1e-05]
[1739806390549,13.29469,2805.6,2805.5,1e-05]
[1739806390749,17.980576,2805.6,2805.5,1e-05]
[1739806391393,18.22821989,2805.6,2805.5,1e-05]
[1739806391693,23.38021071,2805.6,2805.5,1e-05]
[1739806392185,18.22821989,2805.6,2805.5,1e-05]
[1739806392490,18.77821989,2805.6,2805.5,1e-05]
[1739806392859,18.22821989,2805.6,2805.5,1e-05]
[1739806393468,18.17821989,2805.6,2805.5,1e-05]
[1739806393784,18.72821989,2805.6,2805.5,1e-05]
[1739806394687,18.17821989,2805.6,2805.5,1e-05]
[1739806394882,18.72821989,2805.6,2805.5,1e-05]
[1739806396193,18.17821989,2805.6,2805.5,1e-05]
[1739806396693,3.76193389,2805.6,2805.5,1e-05]
[1739806397187,3.76193389,2805.6,2805.5,0.06769259]
[1739806397188,3.80649523,2805.6,2805.5,0.06769259]
[1739806397389,3.80649523,2805.6,2805.5,1e-05]
[1739806397780,3.80649523,2805.6,2805.5,0.06769259]
[1739806397979,3.76193389,2805.6,2805.5,1e-05]
[1739806398183,0.24764389,2805.6,2805.5,1e-05]
[1739806398555,0.24764389,2805.6,2805.5,0.06754644]
[1739806398757,3.81193389,2805.6,2805.5,1e-05]
[1739806398983,3.81193389,2805.6,2805.5,0.06754644]
[1739806399303,3.81193389,2805.6,2805.5,1e-05]
[1739806399500,4.59410182,2805.6,2805.5,0.06754644]
[1739806399795,4.59410182,2805.6,2805.5,1e-05]
[1739806399796,8.90411022,2805.6,2805.5,1e-05]
[1739806399979,17.78654428,2805.6,2805.5,1e-05]
[1739806400367,17.53890039,2805.6,2805.5,1e-05]
[1739806400770,17.53890039,2805.6,2803.4,0.8377]
[1739806400771,0.7805,2804.6,2803.4,0.8377]
[1739806400975,3.56648,2803.9,2803.4,0.8377]
[1739806401159,3.56622,2804.1,2803.5,0.06683639]
[1739806401352,3.56641,2804.0,2803.5,0.06683639]
[1739806401762,3.56611,2804.2,2803.5,0.06683639]
[1739806401959,3.56611,2804.2,2803.6,3.56675]
[1739806402255,7.13228,2804.2,2803.6,4.37058564]
[1739806402454,3.56611,2804.2,2803.7,0.066968]
[1739806402655,3.56589,2804.4,2803.8,3.5665]
[1739806402884,3.56595,2804.3,2803.7,0.066968]
[1739806403089,3.56583,2804.4,2803.9,0.06681605]
[1739806403277,0.04457834,2805.0,2803.8,0.06689202]
[1739806403500,0.04457834,2805.0,2803.4,0.8377]
[1739806403501,3.56619,2804.2,2804.0,0.06674008]
[1739806403707,3.56645,2804.0,2803.4,4.40478]
[1739806404000,3.56647,2803.9,2803.4,0.8377]
[1739806404506,3.56693,2803.6,2803.4,0.005]
[1739806404708,3.923623,2803.6,2803.4,0.005]
[1739806404995,12.54455332,2803.5,2803.4,0.005]
[1739806405201,3.0,2803.4,2801.7,0.8212]
[1739806405401,3.56887,2802.0,2801.2,0.8212]
[1739806405556,3.61349113,2802.0,2801.2,0.8212]
[1739806405760,3.56874,2802.2,2801.3,0.02743641]
[1739806406020,3.56887,2802.0,2801.9,1e-05]
[1739806406588,16.3051882,2802.0,2801.9,1e-05]
[1739806406906,16.26057,2802.0,2801.9,1e-05]
[1739806407201,16.81057,2802.0,2801.9,1e-05]
[1739806407701,3.0,2801.3,2800.6,0.1530418]
[1739806407917,0.7904,2801.8,2800.6,0.1530418]
[1739806408083,3.57053,2800.7,2800.6,0.1530418]
[1739806408262,3.57091,2800.4,2798.1,3.57382]
[1739806408466,3.6578,2799.8,2797.9,0.96576489]
[1739806408801,0.6578,2799.8,2798.3,3.57353]
[1739806409003,0.6578,2799.8,2797.9,0.96576489]
[1739806409004,3.57227,2799.4,2798.4,1.19657573]
[1739806409202,0.6578,2799.8,2798.5,0.02751675]
[1739806409363,3.57245,2799.2,2798.4,0.8117]
[1739806409564,3.6578,2799.8,2798.5,0.07100342]
[1739806409966,3.57231,2799.4,2798.5,0.07100342]
[1739806410180,3.57181,2799.7,2798.6,3.5731]
[1739806410384,3.5716,2799.9,2799.0,3.5727]
[1739806410580,4.3225,2800.2,2799.1,3.57255]
[1739806410789,0.7513,2800.2,2798.9,3.57282]
[1739806411121,0.7513,2800.2,2799.1,0.07054593]
[1739806411122,3.57182,2799.7,2799.1,0.07054593]
[1739806411290,3.57243,2799.3,2799.0,0.07062216]
[1739806411493,3.57243,2799.3,2797.9,0.15676489]
[1739806411494,3.57317,2798.7,2798.3,0.7877]
[1739806411694,3.57285,2798.9,2798.3,0.7877]
[1739806412032,3.61771766,2798.8,2797.9,0.94446489]
[1739806412233,3.57398,2798.0,2797.9,0.15676489]
[1739806412389,3.57294,2798.9,2797.9,0.15676489]
[1739806412712,3.57308,2798.7,2797.9,0.15676489]
[1739806412917,3.0,2799.0,2797.9,0.15676489]
[1739806413126,3.57269,2799.1,2798.1,3.57385]
[1739806413436,1.54392901,2799.9,2798.2,0.8305]
[1739806413711,3.573,2798.8,2798.2,0.8305]
[1739806413912,3.57339,2798.5,2797.9,0.15676489]
[1739806414114,3.57339,2798.5,2795.6,17.77697]
[1739806414115,3.57332,2798.6,2796.4,2.14053751]
[1739806414442,3.57332,2798.6,2796.3,3.57615]
[1739806414443,3.5744,2797.7,2796.3,3.57615]
[1739806414577,3.57435,2797.8,2796.4,3.60358895]
[1739806414781,3.57343,2798.5,2796.5,0.36035889]
[1739806414984,3.57372,2798.3,2797.4,3.57473]
[1739806415220,3.0,2798.6,2797.3,3.57486]
[1739806415578,3.57374,2798.2,2797.5,3.57449]
[1739806415915,3.62770893,2798.9,2797.0,0.02756156]
[1739806416077,3.62770893,2798.9,2797.3,5.15199082]
[1739806416274,3.62770893,2798.9,2798.4,3.57336]
[1739806416517,3.62770893,2798.9,2798.5,3.57323]
[1739806416721,3.62770893,2798.9,2798.7,3.57299]
[1739806417018,3.62770893,2798.9,2798.8,3.57295]
[1739806417184,3.62770893,2798.9,2798.8,4.40605]
[1739806417379,3.62770893,2798.9,2798.5,3.57322]
[1739806417581,3.62770893,2798.9,2798.0,0.8034]
[1739806417890,3.62770893,2798.9,2798.8,3.57295]
[1739806418099,3.62770893,2798.9,2798.8,0.8034]
[1739806418303,3.62770893,2799.0,2798.8,0.87882717]
[1739806418605,3.61749223,2798.9,2798.8,0.07542717]
[1739806418804,3.61749223,2798.9,2798.2,3.5737]
[1739806418805,3.57283,2798.9,2798.2,3.5737]
[1739806419005,7.20041893,2799.0,2798.8,0.07542717]
[1739806419216,7.20041893,2799.0,2798.3,3.5735]
[1739806419217,3.62770893,2799.0,2798.3,3.5735]
[1739806419534,3.62770893,2799.0,2798.9,0.07535092]
[1739806420019,3.62770893,2799.0,2798.2,0.8309]
[1739806420187,3.57295,2798.8,2797.8,0.8309]
[1739806420386,3.57308,2798.7,2797.8,0.8309]
[1739806420597,3.5734,2798.5,2797.9,0.07611362]
[1739806420799,3.57361,2798.3,2797.9,0.07611362]
[1739806421116,3.57398,2798.0,2797.9,0.07611362]
[1739806421681,3.57323,2798.6,2797.4,4.40562]
[1739806421682,3.57295,2798.9,2797.5,0.02756188]
[1739806421881,3.57295,2798.9,2797.9,0.07611362]
[1739806421882,3.57398,2798.0,2797.9,0.07611362]
[1739806422125,3.57374,2798.2,2797.6,3.57448]
[1739806422286,3.57351,2798.4,2797.9,0.07611362]
[1739806422482,3.57361,2798.3,2797.9,0.07611362]
[1739806422683,3.57351,2798.4,2797.4,4.40559]
[1739806422684,7.1471,2798.4,2797.6,3.57438]
[1739806423001,3.57351,2798.4,2797.7,3.57428]
[1739806423331,3.57363,2798.3,2797.7,3.65113622]
[1739806423534,3.57347,2798.4,2797.7,3.65113622]
[1739806423815,3.0,2799.0,2797.7,3.65113622]
[1739806423816,3.57271,2799.0,2798.3,0.7869]
[1739806424224,3.57303,2798.8,2798.4,0.07627335]
[1739806424425,3.57246,2799.2,2798.4,0.07627335]
[1739806424625,3.57286,2798.9,2798.0,0.7869]
[1739806424831,3.57389,2798.1,2797.2,0.7869]
[1739806425030,3.57401,2798.0,2797.4,3.57462]
[1739806425332,3.57428,2797.8,2797.2,4.36182]
[1739806425505,3.57429,2797.8,2797.2,4.36189]
[1739806425705,3.57429,2797.8,2797.2,4.36181]
[1739806425904,3.57402,2798.0,2797.3,3.57486]
[1739806426133,3.57402,2798.0,2797.4,3.57472]
[1739806426294,7.1481,2798.0,2797.3,3.57486]
[1739806426494,7.14812,2798.0,2797.4,3.57474]
[1739806426829,3.57427,2797.8,2797.2,4.36181]
[1739806427030,3.57412,2797.9,2797.3,3.57477]
[1739806427329,3.57421,2797.9,2797.3,3.57477]
[1739806427490,3.57385,2798.1,2797.4,3.57474]
[1739806427697,0.797,2798.3,2797.2,4.36185]
[1739806427922,3.57395,2798.1,2797.4,3.57467]
[1739806428094,3.57395,2798.1,2797.5,3.57451]
[1739806428290,3.57395,2798.1,2797.6,3.57448]
[1739806428529,3.0,2798.6,2797.2,4.36182]
[1739806428734,3.57409,2798.0,2797.3,3.57479]
[1739806428937,3.57409,2798.0,2797.4,3.57466]
[1739806429095,0.797,2798.7,2797.2,0.7869]
[1739806429631,3.57335,2798.5,2798.0,3.57397]
[1739806429831,4.37012,2798.7,2798.1,3.57385]
[1739806430006,3.57337,2798.5,2797.7,3.57433]
[1739806430205,0.357337,2798.4,2797.2,0.7869]
[1739806430427,3.57371,2798.3,2797.2,0.7869]
[1739806430633,0.357337,2798.4,2797.4,3.57465]
[1739806430931,0.50714698,2799.4,2797.5,0.8306]
[1739806431130,3.57245,2799.2,2798.4,4.40397]
[1739806431331,3.929695,2799.2,2798.4,0.8306]
[1739806431553,3.929695,2799.2,2798.7,3.57305]
[1739806431740,3.929695,2799.2,2798.6,3.57318]
[1739806431958,3.57223,2799.4,2798.8,0.07598459]
[1739806432171,3.57251,2799.2,2798.7,0.07606085]
[1739806432319,3.57226,2799.4,2798.9,0.07590835]
[1739806432661,0.8104,2799.5,2799.0,0.07583211]
[1739806432858,0.8104,2799.5,2799.0,3.57258]
[1739806432859,3.5721,2799.5,2799.0,3.57258]
[1739806433054,3.5721,2799.5,2799.1,0.07557682]
[1739806433217,3.57226,2799.4,2798.8,3.57288]
[1739806433424,3.5724,2799.3,2799.2,0.07550059]
[1739806433730,0.35721,2799.5,2798.6,3.57318]
[1739806434040,4.33242,2799.9,2798.7,3.57301]
[1739806434241,3.57175,2799.8,2799.2,3.57238]
[1739806434445,3.57175,2799.8,2799.0,3.57268]
[1739806434641,3.57175,2799.8,2799.3,0.07476527]
[1739806434841,0.7759,2800.3,2799.2,0.7635]
[1739806435042,0.7759,2800.7,2800.1,3.57127]
[1739806435243,0.434638,2800.6,2799.9,3.57151]
[1739806435560,4.005318,2800.6,2800.2,0.07401037]
[1739806435763,3.57052,2800.8,2800.1,3.57128]
[1739806435921,3.57052,2800.8,2800.0,3.57133]
[1739806435922,3.57052,2800.8,2800.3,0.0739342]
[1739806436263,3.5703,2800.9,2800.4,0.07385803]
[1739806436420,3.57017,2801.0,2800.4,0.07385803]
[1739806436617,0.7759,2801.1,2800.0,4.33483]
[1739806436821,3.56995,2801.2,2800.5,0.07378187]
[1739806437017,3.56995,2801.2,2800.1,0.433483]
[1739806437018,3.56969,2801.4,2800.6,3.57053]
[1739806437232,3.56969,2801.4,2800.8,3.57033]
[1739806437437,3.56961,2801.5,2800.9,3.57027]
[1739806437680,8.8523,2801.6,2800.9,0.07323335]
[1739806437835,3.93278089,2801.2,2800.7,3.57052]
[1739806438039,0.36277089,2801.2,2801.0,0.07315721]
[1739806438235,3.56957,2801.5,2800.8,3.57032]
[1739806438427,3.5698,2801.3,2801.1,0.07308109]
[1739806438620,3.51957,2801.5,2800.8,3.57039]
[1739806438825,3.5693,2801.7,2801.2,0.07300497]
[1739806439031,3.5693,2801.7,2800.9,0.8209]
[1739806439032,0.8245,2802.0,2800.9,0.8209]
[1739806439229,1.26972089,2802.0,2801.6,3.56936]
[1739806439441,0.44522089,2802.0,2801.6,3.56936]
[1739806439674,0.44522089,2802.0,2801.7,0.07218561]
[1739806439675,4.01412089,2802.0,2801.7,0.07218561]
[1739806439871,0.44522089,2802.0,2801.6,3.5693]
[1739806440070,0.44522089,2802.0,2801.8,0.07210952]
[1739806440576,3.62770893,2802.1,2801.8,3.56907]
[1739806440871,3.62770893,2802.1,2801.9,0.07203344]
[1739806441234,3.62770893,2802.1,2802.0,3.56887]
[1739806441465,3.62770893,2802.1,2802.0,0.07156351]
[1739806441672,3.62770893,2802.1,2802.0,3.56887]
[1739806441876,3.62770893,2802.1,2802.0,3.64043351]
[1739806442492,3.62770893,2802.1,2802.0,4.79860686]
[1739806442780,3.62770893,2802.1,2802.0,3.64043351]
[1739806442961,8.93e-06,2802.1,2802.0,3.64043351]
[1739806443163,0.7636,2803.4,2802.8,3.56783]
[1739806443164,2.1507204,2803.3,2802.8,3.56783]
[1739806443497,2.1507204,2803.3,2802.6,3.56808]
[1739806443498,2.1507204,2803.3,2802.9,0.07087906]
[1739806443656,2.1507204,2803.3,2802.8,3.56774]
[1739806443973,2.1507204,2803.3,2802.6,4.33909]
[1739806443974,2.1507204,2803.3,2803.2,3.56735]
[1739806444274,2.1507204,2803.3,2803.2,3.63605997]
[1739806444974,2.1507204,2803.3,2803.2,0.06870997]
[1739806445281,2.1507204,2803.3,2803.2,3.56735]
[1739806445464,2.1507204,2803.3,2803.2,3.6358126]
[1739806445778,2.1507204,2803.3,2803.2,5.52373022]
[1739806446139,0.04458584,2805.0,2803.3,0.8081]
[1739806446339,3.56497,2805.1,2804.1,0.8081]
[1739806446651,3.56568,2804.6,2804.2,0.06752847]
[1739806446847,0.7131,2804.6,2804.2,0.06752847]
[1739806447173,0.8287,2805.1,2804.2,0.06752847]
[1739806447548,3.56516,2805.0,2804.3,3.56593]
[1739806447750,4.39364,2805.1,2804.4,3.56571]
[1739806447963,3.56484,2805.2,2804.5,3.56559]
[1739806448167,0.8032,2805.5,2804.5,3.56559]
[1739806448368,0.8032,2805.5,2804.6,0.06703423]
[1739806448579,4.36763,2805.5,2804.8,3.56521]
[1739806448742,0.436763,2805.4,2804.8,3.56521]
[1739806448937,0.436763,2805.4,2805.0,3.56499]
[1739806449178,4.38922,2805.9,2805.2,3.56476]
[1739806449477,3.56418,2805.7,2805.3,0.06626383]
[1739806449683,3.56424,2805.7,2805.0,4.36675]
[1739806449851,0.8253,2805.9,2805.1,0.06641563]
[1739806450225,0.8253,2805.9,2805.0,0.8017]
[1739806450226,0.9301418,2806.3,2805.4,3.56445]
[1739806450380,0.9301418,2806.3,2805.3,3.5646]
[1739806450541,3.56429,2805.6,2805.5,0.06595412]
[1739806450739,0.356429,2805.6,2805.4,0.0636967]
[1739806450945,0.0445585,2805.9,2805.0,0.8037]
[1739806451265,0.0445585,2805.9,2804.3,3.56585]
[1739806451266,3.56507,2805.0,2804.6,0.8037]
[1739806451446,3.56507,2805.0,2804.3,3.56589]
[1739806451645,3.56482,2805.2,2804.6,3.56554]
[1739806451862,3.56402,2805.9,2805.1,3.5649]
[1739806452094,3.920472,2805.8,2805.2,0.0628211]
[1739806452498,3.96502592,2805.8,2805.3,0.06283408]
[1739806452658,3.56418,2805.7,2805.1,3.56481]
[1739806452860,3.920472,2805.8,2805.1,3.56481]
[1739806453073,4.31464,2806.2,2805.3,3.56465]
[1739806453366,3.56367,2806.1,2805.5,3.56439]
[1739806453569,0.1530418,2806.3,2805.4,0.0900602]
[1739806453770,0.1530418,2806.3,2806.2,3.56353]
[1739806454197,0.1530418,2806.3,2806.2,4.4334964]
[1739806454778,1.8e-06,2806.3,2806.2,5.5923072]
[1739806454976,1.8e-06,2806.3,2806.2,4.4334964]
[1739806455293,1.8e-06,2806.3,2806.2,4.460763]
[1739806455617,1.8e-06,2806.3,2806.2,4.4334964]
[1739806457359,3.56585,2808.4,2807.4,0.7937]
[1739806457360,0.005,2808.4,2807.4,0.7937]
[1739806457660,0.005,2808.4,2807.5,0.06037838]
[1739806457661,3.56152,2807.8,2807.5,0.06037838]
[1739806457955,3.56177,2807.6,2807.0,0.7937]
[1739806458156,0.356152,2807.8,2807.6,0.06029454]
[1739806458416,0.356152,2807.8,2807.0,0.7937]
[1739806458417,0.005,2808.4,2807.3,5.15199082]
[1739806458691,3.56169,2807.7,2807.4,0.05938148]
[1739806458892,0.005,2808.4,2807.4,3.56192]
[1739806459099,3.56109,2808.2,2807.5,0.81799974]
[1739806459265,0.005,2808.4,2807.7,5.15199082]
[1739806459595,0.005,2808.4,2808.0,3.56118]
[1739806459796,3.56098,2808.3,2807.8,0.05691607]
[1739806459996,3.56098,2808.3,2807.5,4.32265]
[1739806459997,3.917578,2808.3,2808.1,0.05668881]
[1739806460157,0.04451721,2808.2,2807.1,0.7632]
[1739806460358,3.56112,2808.1,2807.1,0.7632]
[1739806460557,0.04452309,2808.0,2807.2,0.05592402]
[1739806461057,3.562,2807.5,2807.2,0.05592402]
[1739806461259,3.56214,2807.3,2807.2,0.05592402]
[1739806461593,3.56227,2807.2,2806.6,3.56298]
[1739806461769,3.91811,2807.5,2806.6,3.56298]
[1739806462100,3.56165,2807.7,2806.8,3.56277]
[1739806462297,3.5619,2807.5,2806.9,3.61800816]
[1739806462483,3.56112,2808.1,2807.3,3.56204]
[1739806462797,0.04451642,2808.2,2807.4,0.05507918]
[1739806462954,3.56188,2807.5,2807.4,0.05507918]
[1739806463159,3.56218,2807.3,2807.0,0.7985]
[1739806463360,0.712365,2807.5,2807.0,0.7985]
[1739806463555,3.56192,2807.5,2807.1,0.05530655]
[1739806463794,0.783,2807.9,2807.0,0.7985]
[1739806463992,3.56164,2807.7,2807.2,0.05523076]
[1739806464196,3.56164,2807.7,2807.1,0.05327919]
[1739806464492,3.56164,2807.7,2807.3,0.05312851]
[1739806464693,4.34442,2807.9,2807.2,0.0532043]
[1739806465025,3.56162,2807.8,2807.3,0.05312851]
[1739806465267,3.995862,2807.9,2807.3,3.61520851]
[1739806465426,3.56162,2807.8,2807.0,4.36099]
[1739806465714,3.56176,2807.6,2807.0,4.361]
[1739806465914,3.56176,2807.6,2807.1,0.05328009]
[1739806466116,3.56191,2807.5,2807.1,0.05328009]
[1739806466312,3.56177,2807.6,2807.1,0.05328009]
[1739806466492,3.918081,2807.5,2807.1,0.05328009]
[1739806466833,0.8239,2808.3,2807.3,3.56213]
[1739806466980,3.56206,2807.4,2807.0,0.7985]
[1739806467182,3.56229,2807.2,2807.0,0.7985]
[1739806467381,3.56219,2807.3,2806.6,0.784]
[1739806467612,3.56219,2807.3,2806.7,3.56289]
[1739806467793,3.56219,2807.3,2806.7,7.12578]
[1739806468002,3.754,2807.0,2805.3,0.784]
[1739806468238,0.79855073,2807.0,2805.3,0.784]
[1739806468377,0.7675,2806.9,2805.3,0.784]
[1739806468582,3.56468,2805.3,2804.9,0.797]
[1739806468825,3.56478,2805.3,2804.9,0.797]
[1739806469067,3.56444,2805.5,2804.9,0.797]
[1739806469535,3.56444,2805.5,2804.9,4.36209]
[1739806469841,3.56375,2806.1,2805.4,3.56444]
[1739806470136,3.56418,2805.7,2805.1,3.56485]
[1739806470337,3.56414,2805.8,2805.2,3.56475]
[1739806470618,3.5643,2805.6,2804.9,5.154842]
[1739806470822,3.56456,2805.4,2804.9,0.797]
[1739806470993,3.56477,2805.3,2804.9,0.797]
[1739806471398,3.56506,2805.0,2804.5,0.7731]
[1739806472637,3.56456,2805.4,2804.7,3.56534]
[1739806472993,3.56456,2805.4,2804.6,3.56547]
[1739806473155,3.56456,2805.4,2804.5,0.7731]
[1739806473156,3.56442,2805.5,2804.5,0.7731]
[1739806473361,3.56588,2804.4,2804.1,0.8162]
[1739806473717,3.56588,2804.4,2804.2,0.05210498]
[1739806474054,3.56595,2804.3,2804.2,0.05210498]
[1739806474260,4.360753,2804.3,2804.2,0.05210498]
[1739806474441,4.360753,2804.3,2803.3,0.7627]
[1739806474442,3.56662,2803.8,2803.3,0.7627]
[1739806474605,3.56707,2803.5,2803.3,0.7627]
[1739806474945,3.56732,2803.3,2802.8,0.7583]
[1739806475302,3.56771,2803.0,2802.9,0.05237372]
[1739806475502,0.81388949,2803.6,2802.3,0.7583]
[1739806475708,3.56795,2802.8,2802.4,0.05275391]
[1739806476033,3.56762,2803.0,2802.4,0.05275391]
[1739806476604,3.56762,2803.0,2802.4,3.6484832]
[1739806476813,3.56776,2802.9,2802.4,0.05275391]
[1739806477013,3.56795,2802.8,2802.4,0.05275391]
[1739806477213,3.56824,2802.5,2802.4,0.05275391]
[1739806477625,3.56842,2802.4,2801.9,0.8117]
[1739806477970,3.56824,2802.5,2802.0,0.05305817]
[1739806478254,0.8056,2802.8,2802.0,0.05305817]
[1739806478453,3.56875,2802.1,2802.0,0.05305817]
[1739806478751,3.56875,2802.1,2801.5,0.8117]
[1739806478952,3.56824,2802.5,2801.1,0.8117]
[1739806479179,3.5695,2801.6,2801.1,0.8117]
[1739806479452,0.8159,2801.7,2801.0,3.5701]
[1739806479753,3.56948,2801.6,2800.9,3.57026]
[1739806479914,3.56916,2801.8,2801.0,3.57006]
[1739806480114,3.56937,2801.7,2800.8,3.57038]
[1739806480443,3.56937,2801.7,2801.0,3.57003]
[1739806480609,3.56937,2801.7,2801.0,3.57011]
[1739806480813,3.56962,2801.5,2800.8,0.357038]
[1739806481051,0.04461797,2801.6,2800.6,3.57061]
[1739806481251,0.7643,2801.2,2800.1,0.433483]
[1739806481452,0.7643,2801.2,2800.0,0.7819]
[1739806481453,3.56991,2801.2,2800.6,3.57056]
[1739806481653,0.7643,2801.7,2800.4,0.02745625]
[1739806481865,3.56959,2801.5,2800.8,0.7989]
[1739806482038,3.56934,2801.7,2801.0,3.57013]
[1739806482230,3.56909,2801.9,2801.2,3.5698]
[1739806482733,0.7631,2802.6,2802.0,3.5688]
[1739806482971,0.7631,2802.6,2801.3,0.7767]
[1739806482972,3.56799,2802.7,2802.1,3.56874]
[1739806483130,4.33021,2803.4,2802.3,3.56849]
[1739806483333,4.33021,2803.4,2802.4,3.56836]
[1739806483334,2.15796843,2802.5,2802.4,3.56836]
[1739806483684,2.15796843,2802.5,2802.4,0.791355]
[1739806483885,2.15796843,2802.5,2802.4,4.359715]
[1739806484390,1.38244851,2802.5,2802.4,4.359715]
[1739806485751,3.56633,2804.0,2802.5,3.56821]
[1739806486000,0.8131,2803.8,2802.2,0.7767]
[1739806486199,3.5677,2803.0,2802.2,4.34523]
[1739806486336,3.56737,2803.2,2802.2,0.7767]